fUST/lending_fUST_20250530
["ID","MTS","AMOUNT","RATE_DAILY","PERIOD"]
[363101526,1748578246009,-172.72691938,0.00016679,2]
[363101527,1748578246020,-352.54,0.00017346,2]
[363101528,1748578246030,-411.3,0.00018013,2]
[363101529,1748578246039,-300.0,0.00018083,2]
[363101530,1748578246048,-200.0,0.00018083,2]
[363101531,1748578246058,-1200.0,0.00018083,2]
[363101532,1748578246067,-300.0,0.00018083,2]
[363101533,1748578246077,-14157.61604487,0.00018084,2]
[363101534,1748578246088,-10361.87203784,0.00018084,2]
[363101535,1748578246097,-160.0,0.00018114,2]
[363101536,1748578246107,-3681.8892396,0.0001812,2]
[363101537,1748578246116,-282.37128113,0.0001868,2]
[363101541,1748578246290,-187.68871887,0.0001868,2]
[363101542,1748578246300,-84.54874169,0.00018744,2]
[363101543,1748578246311,-376.18961955,0.00018744,2]
[363101544,1748578246321,-306.8358722,0.000188,2]
[363101545,1748578246330,-207.4,0.00018843,2]
[363101546,1748578246339,-247.16452505,0.00018885,2]
[363101547,1748578246349,-984.22519106,0.00018885,2]
[363101548,1748578246359,-220.32690597,0.000189,2]
[363101550,1748578246369,-800.0,0.0001899,2]
[363101551,1748578246379,-368.9038771,0.00019068,2]
[363101552,1748578246389,-217.71179386,0.00019165,2]
[363101553,1748578246398,-457.49433219,0.00019165,2]
[363101554,1748578246407,-500.0,0.00019165,2]
[363101555,1748578246417,-500.0,0.00019165,2]
[363101556,1748578246426,-500.0,0.00019165,2]
[363101557,1748578246435,-500.0,0.00019165,2]
[363101558,1748578246445,-87.48958498,0.00019165,2]
[363101619,1748578525138,-4942.0,0.000161,2]
[363101620,1748578595365,-206.61326875,0.000161,2]
[363101621,1748578595390,-160.25,0.000174,2]
[363101622,1748578595412,-1200.0,0.00017764,2]
[363101623,1748578595436,-4869.13673125,0.00017765,2]
[363101624,1748578668950,-4646.0,0.00017587,2]
[363101625,1748578730539,200.0,0.00019178,30]
[363101629,1748578865858,-5078.0,0.000161,2]
[363101630,1748578937221,-70.61326875,0.000161,2]
[363101631,1748578937245,-153.38673125,0.0001672,2]
[363101633,1748578976619,1198.322157,0.00013699,2]
[363101638,1748579003566,-5000.0,0.0001658,2]
[363101639,1748579003588,-114.0,0.00016747,2]
[363101641,1748579074543,-5000.0,0.0001658,2]
[363101642,1748579074566,-76.0,0.00016704,2]
[363101651,1748579148413,-7288.44101585,0.000161,2]
[363101652,1748579148438,-1200.0,0.00016536,2]
[363101653,1748579148461,-300.0,0.00016536,2]
[363101654,1748579148485,-4996.55898415,0.00016537,2]
[363101700,1748579290952,-4909.0,0.00016372,2]
[363101706,1748579321752,1652.19315416,0.00015,2]
[363101708,1748579373157,-91.0,0.00016372,2]
[363101709,1748579373180,-181.69,0.00016728,2]
[363101710,1748579373201,-199.79285348,0.00017397,2]
[363101807,1748579432574,-5000.0,0.00017223,2]
[363101809,1748579432587,-176.41,0.00017413,2]
[363101812,1748579432601,-781.0,0.00017542,2]
[363101814,1748579432611,-300.0,0.00017543,2]
[363101816,1748579432623,-300.0,0.00017543,2]
[363101818,1748579432636,-300.0,0.00017543,2]
[363101821,1748579432651,-300.0,0.00017543,2]
[363101823,1748579432664,-300.0,0.00017543,2]
[363101826,1748579432679,-9825.11102927,0.00017544,2]
[363101866,1748579439121,-15074.88897073,0.00017544,2]
[363101867,1748579439132,-403.14606605,0.00017753,2]
[363101868,1748579439141,-8769.0109373,0.00017822,2]
[363101869,1748579439150,-377.1205741,0.00017853,2]
[363101870,1748579439160,-211.93,0.0001799,3]
[363101871,1748579439173,-635.82,0.0001799,3]
[363101872,1748579439183,-506.31274454,0.00017999,2]
[363101873,1748579439192,-500.0,0.00017999,2]
[363101874,1748579439202,-506.31274454,0.00017999,2]
[363101875,1748579439211,-506.31274454,0.00017999,2]
[363101876,1748579439221,-506.31274454,0.00017999,2]
[363101877,1748579439230,-506.31274454,0.00017999,2]
[363101878,1748579439239,-201.56520008,0.00017999,2]
[363101879,1748579439249,-500.0,0.00017999,2]
[363101880,1748579439258,-506.31274454,0.00017999,2]
[363101881,1748579439269,-500.0,0.00017999,2]
[363101882,1748579439279,-506.31274454,0.00017999,2]
[363101883,1748579439288,-506.31274454,0.00017999,2]
[363101884,1748579439298,-506.31274454,0.00017999,2]
[363101885,1748579439307,-506.31274454,0.00017999,2]
[363101886,1748579439317,-506.31274454,0.00017999,2]
[363101887,1748579439336,-506.31274454,0.00017999,2]
[363101888,1748579439347,-506.31274454,0.00017999,2]
[363101889,1748579439358,-506.31274454,0.00017999,2]
[363101890,1748579439368,-506.31274454,0.00017999,2]
[363101891,1748579439378,-506.31274454,0.00017999,2]
[363101892,1748579439388,-506.31274454,0.00017999,2]
[363101893,1748579439398,-506.31274454,0.00017999,2]
[363101894,1748579439408,-506.31274454,0.00017999,2]
[363101895,1748579439418,-10598.34359219,0.00018,3]
[363101896,1748579439428,-100437.68524559,0.00018,2]
[363101897,1748579439438,-212.7380601,0.00018,3]
[363101898,1748579439448,-40583.87731512,0.00018,2]
[363101899,1748579439459,-12247.8566542,0.00018,2]
[363101900,1748579439469,-2584.66556744,0.00018,2]
[363101901,1748579439479,-18549.89015581,0.00018,2]
[363101902,1748579439489,-500.0,0.00018,2]
[363101903,1748579439499,-420.0,0.0001807,2]
[363101904,1748579439509,-205.81,0.00018082,2]
[363101905,1748579439520,-423.86,0.00018084,3]
[363101906,1748579439530,-847.73,0.00018094,3]
[363101907,1748579439540,-219.118354,0.00018104,2]
[363101908,1748579439550,-719.6150823,0.00018142,2]
[363101910,1748579439560,-364.2452897,0.00018241,2]
[363101912,1748579439569,-500.0,0.00018274,2]
[363101914,1748579439579,-364.2452897,0.00018341,2]
[363101916,1748579439590,-500.0,0.00018548,2]
[363101918,1748579439600,-378.7159858,0.00018641,2]
[363101920,1748579439610,-573.46618323,0.00018711,2]
[363101922,1748579439619,-403.14606605,0.00018738,2]
[363101924,1748579439629,-235.21,0.00018752,2]
[363101926,1748579439639,-176.00679246,0.00018822,2]
[363101928,1748579439649,-207.4,0.00018843,2]
[363101930,1748579439659,-325.09860125,0.000189,2]
[363101933,1748579439668,-942.52527502,0.000189,2]
[363101935,1748579439678,-188.8045275,0.00019041,2]
[363101937,1748579439687,-294.91963883,0.00019052,2]
[363101939,1748579439697,-300.0,0.00019052,2]
[363101941,1748579439707,-300.0,0.00019052,2]
[363101943,1748579439716,-300.0,0.00019052,2]
[363101945,1748579439726,-300.0,0.00019052,2]
[363101946,1748579439736,-300.0,0.00019052,2]
[363101948,1748579439745,-300.0,0.00019052,2]
[363101950,1748579439755,-300.0,0.00019052,2]
[363101952,1748579439765,-300.0,0.00019052,2]
[363101954,1748579439775,-300.0,0.00019052,2]
[363101956,1748579439784,-300.0,0.00019052,2]
[363101957,1748579439794,-300.0,0.00019052,2]
[363101959,1748579439803,-300.0,0.00019052,2]
[363101960,1748579439813,-300.0,0.00019052,2]
[363101962,1748579439823,-300.0,0.00019052,2]
[363101964,1748579439832,-300.0,0.00019052,2]
[363101965,1748579439846,-2204.15480696,0.00019072,2]
[363101966,1748579439855,-942.52527485,0.00019107,2]
[363101967,1748579439866,-1809.79014,0.0001911,2]
[363101968,1748579439875,-420.0,0.0001915,2]
[363101970,1748579439885,-420.0,0.0001915,2]
[363101973,1748579439895,-162.56,0.00019153,2]
[363101975,1748579439905,-842.5625,0.00019164,3]
[363101976,1748579439915,-490.68393335,0.00019165,2]
[363101978,1748579439924,-15095.98440519,0.00019168,2]
[363101981,1748579439934,-720.0,0.00019172,2]
[363101983,1748579439947,-720.0,0.00019172,2]
[363101985,1748579439957,-720.0,0.00019172,2]
[363101987,1748579439966,-720.0,0.00019172,2]
[363101989,1748579439976,-720.0,0.00019172,2]
[363101991,1748579439985,-720.0,0.00019172,2]
[363101994,1748579439996,-720.0,0.00019172,2]
[363101997,1748579440006,-720.0,0.00019172,2]
[363102000,1748579440016,-720.0,0.00019172,2]
[363102003,1748579440025,-720.0,0.00019172,2]
[363102005,1748579440035,-720.0,0.00019172,2]
[363102007,1748579440045,-720.0,0.00019172,2]
[363102010,1748579440055,-720.0,0.00019172,2]
[363102012,1748579440066,-720.0,0.00019172,2]
[363102014,1748579440076,-720.0,0.00019172,2]
[363102016,1748579440088,-720.0,0.00019172,2]
[363102018,1748579440098,-390.01137871,0.00019172,2]
[363102020,1748579440108,-500.0,0.00019173,2]
[363102022,1748579440117,-501.61432745,0.00019173,2]
[363102024,1748579440127,-500.0,0.00019173,2]
[363102026,1748579440138,-503.13756965,0.00019173,2]
[363102028,1748579440147,-5000.0,0.00019176,2]
[363102030,1748579440158,-160.0,0.00019176,2]
[363102032,1748579440167,-206.037986,0.00019178,2]
[363102034,1748579440178,-155.681729,0.00019178,2]
[363102036,1748579440187,-430.0,0.00019178,2]
[363102038,1748579440197,-301.50240169,0.00019178,2]
[363102040,1748579440207,-657.864484,0.00019178,2]
[363102042,1748579440216,-657.864484,0.00019178,2]
[363102044,1748579440226,-151.0,0.00019178,2]
[363102046,1748579440235,-430.0,0.00019178,2]
[363102048,1748579440245,-430.0,0.00019178,2]
[363102050,1748579440255,-151.0,0.00019178,2]
[363102053,1748579440265,-430.0,0.00019178,2]
[363102055,1748579440275,-400.75145934,0.00019178,2]
[363102057,1748579440284,-430.0,0.00019178,2]
[363102059,1748579440294,-430.0,0.00019178,2]
[363102060,1748579440303,-371.75364203,0.00019178,2]
[363102062,1748579440312,-430.0,0.00019178,2]
[363102064,1748579440322,-430.0,0.00019178,2]
[363102066,1748579440331,-432.027105,0.00019178,2]
[363102068,1748579440340,-430.0,0.00019178,2]
[363102070,1748579440349,-479.49453095,0.00019178,2]
[363102072,1748579440359,-430.0,0.00019178,2]
[363102074,1748579440368,-430.0,0.00019178,2]
[363102076,1748579440377,-456.91233808,0.00019178,2]
[363102078,1748579440387,-430.0,0.00019178,2]
[363102080,1748579440396,-430.0,0.00019178,2]
[363102082,1748579440405,-151.0,0.00019178,2]
[363102084,1748579440415,-430.0,0.00019178,2]
[363102086,1748579440424,-430.0,0.00019178,2]
[363102088,1748579440433,-430.0,0.00019178,2]
[363102090,1748579440442,-430.0,0.00019178,2]
[363102092,1748579440451,-151.0,0.00019178,2]
[363102094,1748579440460,-350.0,0.00019178,2]
[363102096,1748579440470,-430.0,0.00019178,2]
[363102098,1748579440479,-430.0,0.00019178,2]
[363102100,1748579440488,-430.0,0.00019178,2]
[363102102,1748579440497,-430.0,0.00019178,2]
[363102104,1748579440507,-430.0,0.00019178,2]
[363102106,1748579440516,-430.0,0.00019178,2]
[363102108,1748579440525,-430.0,0.00019178,2]
[363102110,1748579440535,-238.938346,0.00019178,2]
[363102111,1748579440543,-238.938346,0.00019178,2]
[363102113,1748579440553,-238.938346,0.00019178,2]
[363102115,1748579440562,-430.0,0.00019178,2]
[363102117,1748579440571,-238.938346,0.00019178,2]
[363102119,1748579440580,-238.938346,0.00019178,2]
[363102121,1748579440589,-238.938346,0.00019178,2]
[363102123,1748579440600,-430.0,0.00019178,2]
[363102125,1748579440609,-430.0,0.00019178,2]
[363102127,1748579440618,-430.0,0.00019178,2]
[363102129,1748579440629,-151.0,0.00019178,2]
[363102131,1748579440638,-151.0,0.00019178,2]
[363102133,1748579440647,-151.669481,0.00019178,2]
[363102135,1748579440657,-205.63454713,0.00019178,2]
[363102137,1748579440667,-400.0,0.00019178,2]
[363102139,1748579440676,-430.0,0.00019178,2]
[363102141,1748579440685,-430.0,0.00019178,2]
[363102143,1748579440695,-430.0,0.00019178,2]
[363102145,1748579440704,-430.0,0.00019178,2]
[363102147,1748579440713,-430.0,0.00019178,2]
[363102150,1748579440723,-430.0,0.00019178,2]
[363102151,1748579440732,-430.0,0.00019178,2]
[363102153,1748579440742,-430.0,0.00019178,2]
[363102155,1748579440751,-430.0,0.00019178,2]
[363102157,1748579440760,-430.0,0.00019178,2]
[363102159,1748579440770,-430.0,0.00019178,2]
[363102161,1748579440779,-430.0,0.00019178,2]
[363102162,1748579440789,-151.0,0.00019178,2]
[363102163,1748579440798,-430.0,0.00019178,2]
[363102164,1748579440807,-430.0,0.00019178,2]
[363102165,1748579440818,-430.0,0.00019178,2]
[363102167,1748579440831,-430.0,0.00019178,2]
[363102169,1748579440847,-430.0,0.00019178,2]
[363102171,1748579440857,-430.0,0.00019178,2]
[363102174,1748579440866,-430.0,0.00019178,2]
[363102176,1748579440876,-430.0,0.00019178,2]
[363102178,1748579440885,-430.0,0.00019178,2]
[363102180,1748579440894,-430.0,0.00019178,2]
[363102182,1748579440903,-430.0,0.00019178,2]
[363102184,1748579440912,-430.0,0.00019178,2]
[363102186,1748579440921,-430.0,0.00019178,2]
[363102188,1748579440931,-450.0,0.00019178,2]
[363102191,1748579440941,-185.48670589,0.00019178,2]
[363102193,1748579440950,-430.0,0.00019178,2]
[363102195,1748579440959,-430.0,0.00019178,2]
[363102196,1748579440968,-434.44195934,0.00019178,2]
[363102199,1748579440978,-472.74,0.00019178,2]
[363102201,1748579440987,-151.0,0.00019178,2]
[363102202,1748579440996,-151.0,0.00019178,2]
[363102204,1748579441006,-430.0,0.00019178,2]
[363102206,1748579441017,-430.0,0.00019178,2]
[363102208,1748579441030,-430.0,0.00019178,2]
[363102210,1748579441040,-430.0,0.00019178,2]
[363102212,1748579441050,-151.0,0.00019178,2]
[363102228,1748579441194,-151.0,0.00019178,2]
[363102230,1748579441204,-151.0,0.00019178,2]
[363102232,1748579441213,-430.0,0.00019178,2]
[363102234,1748579441222,-221.327133,0.00019178,2]
[363102236,1748579441231,-430.0,0.00019178,2]
[363102238,1748579441240,-455.07121492,0.00019178,2]
[363102239,1748579441250,-546.5364559,0.00019178,2]
[363102241,1748579441259,-151.0,0.00019178,2]
[363102244,1748579441279,-151.0,0.00019178,2]
[363102245,1748579441294,-151.0,0.00019178,2]
[363102247,1748579441303,-430.0,0.00019178,2]
[363102249,1748579441312,-430.0,0.00019178,2]
[363102251,1748579441320,-430.0,0.00019178,2]
[363102253,1748579441329,-430.0,0.00019178,2]
[363102255,1748579441338,-320.0,0.00019178,2]
[363102257,1748579441348,-430.0,0.00019178,2]
[363102259,1748579441357,-430.0,0.00019178,2]
[363102261,1748579441367,-430.0,0.00019178,2]
[363102263,1748579441376,-430.0,0.00019178,2]
[363102265,1748579441385,-430.0,0.00019178,2]
[363102267,1748579441395,-151.0,0.00019178,2]
[363102269,1748579441405,-151.0,0.00019178,2]
[363102271,1748579441415,-151.0,0.00019178,2]
[363102273,1748579441425,-430.0,0.00019178,2]
[363102275,1748579441434,-430.0,0.00019178,2]
[363102277,1748579441443,-151.0,0.00019178,2]
[363102279,1748579441452,-151.0,0.00019178,2]
[363102281,1748579441461,-151.0,0.00019178,2]
[363102283,1748579441471,-151.0,0.00019178,2]
[363102285,1748579441480,-430.0,0.00019178,2]
[363102288,1748579441490,-383.82908698,0.00019178,2]
[363102289,1748579441499,-151.0,0.00019178,2]
[363102290,1748579441509,-430.0,0.00019178,2]
[363102291,1748579441519,-430.0,0.00019178,2]
[363102292,1748579441528,-430.0,0.00019178,2]
[363102293,1748579441538,-458.89270919,0.00019178,2]
[363102294,1748579441547,-1885.816453,0.00019178,2]
[363102295,1748579441556,-430.0,0.00019178,2]
[363102296,1748579441566,-1885.816453,0.00019178,2]
[363102297,1748579441575,-441.54871335,0.00019178,2]
[363102298,1748579441584,-304.53541914,0.00019178,2]
[363102299,1748579441594,-1885.816453,0.00019178,2]
[363102300,1748579441603,-1885.816453,0.00019178,2]
[363102301,1748579441612,-430.0,0.00019178,2]
[363102302,1748579441621,-151.0,0.00019178,2]
[363102303,1748579441631,-477.90193848,0.00019178,2]
[363102304,1748579441640,-430.0,0.00019178,2]
[363102305,1748579441649,-570.38849936,0.00019178,2]
[363102306,1748579441658,-430.0,0.00019178,2]
[363102307,1748579441667,-430.0,0.00019178,2]
[363102308,1748579441676,-430.0,0.00019178,2]
[363102309,1748579441685,-430.0,0.00019178,2]
[363102310,1748579441695,-430.0,0.00019178,2]
[363102311,1748579441704,-151.0,0.00019178,2]
[363102312,1748579441713,-151.0,0.00019178,2]
[363102313,1748579441722,-151.0,0.00019178,2]
[363102314,1748579441732,-430.0,0.00019178,2]
[363102315,1748579441741,-430.0,0.00019178,2]
[363102316,1748579441750,-430.0,0.00019178,2]
[363102317,1748579441760,-353.092485,0.00019178,2]
[363102318,1748579441770,-353.092485,0.00019178,2]
[363102319,1748579441779,-430.0,0.00019178,2]
[363102320,1748579441788,-353.092485,0.00019178,2]
[363102321,1748579441797,-430.0,0.00019178,2]
[363102322,1748579441807,-430.0,0.00019178,2]
[363102323,1748579441816,-353.092485,0.00019178,2]
[363102324,1748579441826,-283.957067,0.00019178,2]
[363102325,1748579441835,-353.092485,0.00019178,2]
[363102326,1748579441845,-283.957067,0.00019178,2]
[363102327,1748579441854,-353.092485,0.00019178,2]
[363102328,1748579441863,-430.0,0.00019178,2]
[363102329,1748579441872,-430.0,0.00019178,2]
[363102330,1748579441884,-430.0,0.00019178,2]
[363102331,1748579441893,-283.957067,0.00019178,2]
[363102332,1748579441902,-283.957067,0.00019178,2]
[363102333,1748579441911,-430.0,0.00019178,2]
[363102334,1748579441920,-430.0,0.00019178,2]
[363102335,1748579441929,-430.0,0.00019178,2]
[363102336,1748579441939,-315.86623189,0.00019178,2]
[363102337,1748579441948,-430.0,0.00019178,2]
[363102338,1748579441957,-430.0,0.00019178,2]
[363102339,1748579441967,-430.0,0.00019178,2]
[363102340,1748579441976,-605.99843693,0.00019178,2]
[363102341,1748579441986,-655.03,0.00019178,2]
[363102342,1748579441995,-430.0,0.00019178,2]
[363102343,1748579442004,-544.91,0.00019178,2]
[363102344,1748579442014,-500.0,0.00019178,2]
[363102345,1748579442023,-500.0,0.00019178,2]
[363102346,1748579442034,-500.0,0.00019178,2]
[363102347,1748579442044,-430.0,0.00019178,2]
[363102348,1748579442054,-430.0,0.00019178,2]
[363102349,1748579442064,-430.0,0.00019178,2]
[363102350,1748579442074,-430.0,0.00019178,2]
[363102351,1748579442086,-430.0,0.00019178,2]
[363102352,1748579442096,-217.53541266,0.00019178,2]
[363102353,1748579442105,-1407.800385,0.00019178,2]
[363102354,1748579442121,-1407.800385,0.00019178,2]
[363102355,1748579442134,-1407.800385,0.00019178,2]
[363102356,1748579442144,-430.0,0.00019178,2]
[363102357,1748579442154,-1407.800385,0.00019178,2]
[363102358,1748579442166,-1407.800385,0.00019178,2]
[363102359,1748579442176,-1407.800385,0.00019178,2]
[363102360,1748579442185,-438.86003611,0.00019178,2]
[363102361,1748579442195,-715.58,0.00019178,2]
[363102362,1748579442206,-151.0,0.00019178,2]
[363102363,1748579442217,-151.0,0.00019178,2]
[363102364,1748579442227,-151.0,0.00019178,2]
[363102365,1748579442236,-151.0,0.00019178,2]
[363102366,1748579442245,-151.0,0.00019178,2]
[363102367,1748579442255,-152.62958,0.00019178,2]
[363102368,1748579442266,-430.0,0.00019178,2]
[363102369,1748579442275,-430.0,0.00019178,2]
[363102370,1748579442285,-430.0,0.00019178,2]
[363102371,1748579442295,-430.0,0.00019178,2]
[363102372,1748579442304,-430.0,0.00019178,2]
[363102373,1748579442314,-430.0,0.00019178,2]
[363102374,1748579442323,-430.0,0.00019178,2]
[363102375,1748579442332,-430.0,0.00019178,2]
[363102376,1748579442342,-430.0,0.00019178,2]
[363102377,1748579442351,-430.0,0.00019178,2]
[363102378,1748579442360,-436.97986081,0.00019178,2]
[363102379,1748579442369,-430.0,0.00019178,2]
[363102380,1748579442379,-151.0,0.00019178,2]
[363102381,1748579442387,-151.0,0.00019178,2]
[363102382,1748579442397,-430.0,0.00019178,2]
[363102383,1748579442406,-151.0,0.00019178,2]
[363102384,1748579442415,-430.0,0.00019178,2]
[363102385,1748579442424,-151.0,0.00019178,2]
[363102386,1748579442433,-265.36702,0.00019178,2]
[363102387,1748579442442,-430.0,0.00019178,2]
[363102388,1748579442451,-430.0,0.00019178,2]
[363102389,1748579442461,-430.0,0.00019178,2]
[363102390,1748579442470,-430.0,0.00019178,2]
[363102391,1748579442479,-430.0,0.00019178,2]
[363102392,1748579442488,-430.0,0.00019178,2]
[363102393,1748579442497,-303.01102248,0.00019178,2]
[363102394,1748579442506,-430.0,0.00019178,2]
[363102395,1748579442515,-430.0,0.00019178,2]
[363102396,1748579442524,-399.64830991,0.00019178,2]
[363102397,1748579442534,-430.0,0.00019178,2]
[363102398,1748579442543,-430.0,0.00019178,2]
[363102399,1748579442552,-430.0,0.00019178,2]
[363102400,1748579442561,-151.0,0.00019178,2]
[363102401,1748579442570,-151.0,0.00019178,2]
[363102402,1748579442580,-430.0,0.00019178,2]
[363102403,1748579442589,-151.0,0.00019178,2]
[363102404,1748579442598,-430.0,0.00019178,2]
[363102405,1748579442607,-151.0,0.00019178,2]
[363102406,1748579442616,-151.0,0.00019178,2]
[363102407,1748579442625,-151.0,0.00019178,2]
[363102408,1748579442634,-151.0,0.00019178,2]
[363102410,1748579442643,-151.0,0.00019178,2]
[363102411,1748579442652,-151.0,0.00019178,2]
[363102412,1748579442661,-151.0,0.00019178,2]
[363102413,1748579442670,-151.0,0.00019178,2]
[363102414,1748579442679,-430.0,0.00019178,2]
[363102415,1748579442688,-436.14059232,0.00019178,2]
[363102416,1748579442697,-430.0,0.00019178,2]
[363102417,1748579442706,-500.0,0.00019178,2]
[363102418,1748579442715,-500.0,0.00019178,2]
[363102419,1748579442724,-500.0,0.00019178,2]
[363102420,1748579442734,-500.0,0.00019178,2]
[363102421,1748579442743,-151.0,0.00019178,2]
[363102422,1748579442753,-500.0,0.00019178,2]
[363102423,1748579442762,-500.0,0.00019178,2]
[363102424,1748579442773,-279.7268685,0.00019178,2]
[363102425,1748579442783,-394.03141768,0.00019178,2]
[363102426,1748579442793,-151.0,0.00019178,2]
[363102427,1748579442803,-500.0,0.00019178,2]
[363102428,1748579442813,-500.0,0.00019178,2]
[363102429,1748579442823,-151.0,0.00019178,2]
[363102430,1748579442832,-500.0,0.00019178,2]
[363102431,1748579442842,-500.0,0.00019178,2]
[363102432,1748579442851,-413.77851663,0.00019178,2]
[363102433,1748579442860,-635.83,0.00019178,2]
[363102434,1748579442870,-151.0,0.00019178,2]
[363102435,1748579442879,-151.0,0.00019178,2]
[363102437,1748579442888,-430.0,0.00019178,2]
[363102438,1748579442897,-216.841752,0.00019178,2]
[363102439,1748579442907,-431.36279075,0.00019178,2]
[363102440,1748579442916,-430.0,0.00019178,2]
[363102441,1748579442926,-430.0,0.00019178,2]
[363102442,1748579442936,-490.0,0.00019178,2]
[363102444,1748579442945,-430.87452422,0.00019178,2]
[363102445,1748579442955,-430.0,0.00019178,2]
[363102446,1748579442965,-430.0,0.00019178,2]
[363102447,1748579442975,-430.0,0.00019178,2]
[363102448,1748579442985,-430.0,0.00019178,2]
[363102449,1748579442994,-430.0,0.00019178,2]
[363102451,1748579443004,-430.0,0.00019178,2]
[363102453,1748579443013,-151.0,0.00019178,2]
[363102455,1748579443026,-151.0,0.00019178,2]
[363102457,1748579443036,-151.0,0.00019178,2]
[363102459,1748579443045,-151.0,0.00019178,2]
[363102461,1748579443054,-500.0,0.00019178,2]
[363102463,1748579443064,-500.0,0.00019178,2]
[363102465,1748579443073,-500.0,0.00019178,2]
[363102467,1748579443084,-356.10432305,0.00019178,2]
[363102469,1748579443095,-436.87976464,0.00019178,2]
[363102471,1748579443104,-430.0,0.00019178,2]
[363102473,1748579443113,-430.0,0.00019178,2]
[363102475,1748579443122,-430.0,0.00019178,2]
[363102477,1748579443134,-430.0,0.00019178,2]
[363102479,1748579443143,-430.0,0.00019178,2]
[363102481,1748579443152,-430.0,0.00019178,2]
[363102484,1748579443162,-811.87,0.00019178,2]
[363102487,1748579443173,-266.913369,0.00019178,2]
[363102489,1748579443183,-366.10549734,0.00019178,2]
[363102491,1748579443203,-430.0,0.00019178,2]
[363102493,1748579443213,-400.0,0.00019178,2]
[363102495,1748579443223,-430.0,0.00019178,2]
[363102498,1748579443232,-952.06,0.00019178,2]
[363102500,1748579443241,-430.0,0.00019178,2]
[363102502,1748579443250,-558.14251133,0.00019178,2]
[363102504,1748579443260,-450.0,0.00019178,2]
[363102506,1748579443270,-430.0,0.00019178,2]
[363102508,1748579443280,-245.96963375,0.00019178,2]
[363102510,1748579443289,-151.0,0.00019178,2]
[363102512,1748579443298,-151.0,0.00019178,2]
[363102514,1748579443308,-151.0,0.00019178,2]
[363102516,1748579443317,-151.0,0.00019178,2]
[363102518,1748579443327,-151.0,0.00019178,2]
[363102520,1748579443336,-430.0,0.00019178,2]
[363102522,1748579443346,-430.0,0.00019178,2]
[363102524,1748579443355,-468.93,0.00019178,2]
[363102526,1748579443364,-430.0,0.00019178,2]
[363102528,1748579443373,-430.0,0.00019178,2]
[363102530,1748579443383,-430.0,0.00019178,2]
[363102532,1748579443392,-430.0,0.00019178,2]
[363102534,1748579443401,-430.0,0.00019178,2]
[363102536,1748579443410,-430.0,0.00019178,2]
[363102538,1748579443420,-400.0,0.00019178,2]
[363102540,1748579443430,-1027.67,0.00019178,2]
[363102542,1748579443439,-430.0,0.00019178,2]
[363102544,1748579443448,-168.820604,0.00019178,2]
[363102546,1748579443457,-2145.48,0.00019178,2]
[363102548,1748579443466,-168.820604,0.00019178,2]
[363102550,1748579443475,-168.820604,0.00019178,2]
[363102552,1748579443484,-168.820604,0.00019178,2]
[363102554,1748579443495,-400.0,0.00019178,2]
[363102556,1748579443504,-430.0,0.00019178,2]